bitfinex/quotes_SOLUSD_20241116
["timestamp","ask_amount","ask_price","bid_price","bid_amount"]
[1731721563285,10.63130055,218.5,218.43,10.63130055]
[1731721563479,4.5762,218.52,218.44,10.63130055]
[1731721563788,4.5762,218.52,218.38,16.027]
[1731721563789,15.20750055,218.52,218.39,0.21916462]
[1731721563994,15.20750055,218.52,218.45,10.63130055]
[1731721564563,4.5762,218.52,218.46,10.63130055]
[1731721564767,4.5762,218.52,218.41,0.34465462]
[1731721564768,4.5762,218.52,218.47,10.63130055]
[1731721565073,4.5762,218.52,218.48,10.63130055]
[1731721565887,15.20750055,218.52,218.43,16.0234]
[1731721566393,15.20750055,218.52,218.45,10.63130055]
[1731721566775,4.5762,218.52,218.45,10.63130055]
[1731721566974,15.20750055,218.52,218.45,10.63130055]
[1731721567399,10.63130055,218.48,218.39,24.5788]
[1731721567694,10.63130055,218.5,218.43,10.63130055]
[1731721567880,10.63130055,218.5,218.42,10.63130055]
[1731721568075,10.63130055,218.5,218.39,4.5788]
[1731721568272,10.63130055,218.47,218.39,4.5788]
[1731721568474,10.63130055,218.48,218.38,16.0266]
[1731721568772,10.63130055,218.48,218.4,10.63130055]
[1731721569392,4.5772,218.47,218.4,10.63130055]
[1731721570578,10.63130055,218.47,218.4,10.63130055]
[1731721571201,10.63130055,218.46,218.39,10.63130055]
[1731721571702,4.5777,218.45,218.39,10.63130055]
[1731721571885,4.5777,218.45,218.38,16.0266]
[1731721572493,4.5777,218.45,218.39,10.63130055]
[1731721572883,4.5777,218.45,218.34,16.28098]
[1731721573084,4.5777,218.45,218.39,10.63130055]
[1731721574097,15.20900055,218.45,218.38,10.63130055]
[1731721574302,4.5777,218.45,218.38,10.63130055]
[1731721574484,15.20900055,218.45,218.38,10.63130055]
[1731721574884,15.20900055,218.45,218.35,16.0293]
[1731721575196,15.20900055,218.45,218.38,10.63130055]
[1731721575989,15.20900055,218.45,218.35,16.0293]
[1731721576183,15.20900055,218.45,218.38,10.63130055]
[1731721576911,10.63130055,218.44,218.36,10.63130055]
[1731721578001,10.63130055,218.44,218.37,10.63130055]
[1731721578205,4.5781,218.43,218.37,10.63130055]
[1731721579890,25.78110055,218.42,218.33,22.9007]
[1731721580207,15.1498,218.42,218.35,10.63130055]
[1731721580993,37.02394776,218.51,218.35,10.63130055]
[1731721580994,15.1498,218.48,218.41,10.63130055]
[1731721581296,10.63130055,218.45,218.38,10.63130055]
[1731721581493,10.63130055,218.46,218.39,10.63130055]
[1731721581687,10.63130055,218.46,218.33,20.25098]
[1731721582319,4.5777,218.45,218.4,10.63130055]
[1731721584399,4.5777,218.45,218.35,11.4494]
[1731721584601,10.63130055,218.46,218.35,11.4494]
[1731721584909,10.63130055,218.46,218.38,10.63130055]
[1731721585114,10.63130055,218.45,218.38,10.63130055]
[1731721586101,10.63130055,218.44,218.37,10.63130055]
[1731721586299,10.63130055,218.44,218.35,11.4494]
[1731721586515,10.63130055,218.44,218.37,10.63130055]
[1731721587617,15.20930055,218.44,218.38,2.69]
[1731721587999,4.578,218.44,218.38,13.32130055]
[1731721589614,4.5774,218.46,218.38,13.32130055]
[1731721589812,10.63130055,218.45,218.38,13.32130055]
[1731721590618,4.5779,218.44,218.38,13.32130055]
[1731721590807,4.5779,218.44,218.38,2.69]
[1731721591009,4.5779,218.44,218.38,13.32130055]
[1731721593911,10.63130055,218.43,218.38,2.69]
[1731721594115,15.5752,218.4,218.38,2.69]
[1731721595397,34.40818455,218.39,218.38,2.69]
[1731721595596,6.1972,218.37,218.26,10.63130055]
[1731721595795,10.63130055,218.3,218.23,9.19094748]
[1731721596015,10.63130055,218.3,218.23,24.40444803]
[1731721596225,10.63130055,218.3,218.23,10.63130055]
[1731721596521,10.63130055,218.29,218.22,10.63130055]
[1731721596700,10.63130055,218.26,218.17,4.5834]
[1731721596903,26.20650055,218.23,218.16,11.4589]
[1731721597206,10.63130055,218.21,218.13,5.0193921]
[1731721597520,10.63130055,218.21,218.14,10.63130055]
[1731721598607,10.63130055,218.19,218.13,0.4351921]
[1731721598923,15.5752,218.23,218.13,16.4804921]
[1731721599100,10.63130055,218.21,218.14,10.63130055]
[1731721599296,10.63130055,218.19,218.13,11.8961921]
[1731721600908,10.63130055,218.2,218.13,22.52749265]
[1731721602010,15.21430055,218.2,218.13,22.52749265]
[1731721603319,4.583,218.2,218.14,10.63130055]
[1731721603528,15.21430055,218.2,218.13,22.52749265]
[1731721604803,10.63130055,218.18,218.13,0.4351921]
[1731721605018,10.63130055,218.16,218.13,0.4351921]
[1731721605734,10.63130055,218.15,218.13,0.4351921]
[1731721606030,49.98338455,218.14,218.13,0.4351921]
[1731721606326,39.352084,218.14,218.13,0.4351921]
[1731721606709,49.98338455,218.14,218.13,0.4351921]
[1731721607027,54.56758455,218.14,218.13,0.4351921]
[1731721607603,97.43744137,218.14,218.13,0.4351921]
[1731721608012,24.12153862,218.13,218.0,15.21820055]
[1731721608223,24.12153862,218.13,217.99,15.21860055]
[1731721608224,10.63130055,218.06,217.99,15.21860055]
[1731721608813,16.6518414,218.06,217.99,21.2391414]
[1731721609006,21.2376414,218.06,217.99,21.2391414]
[1731721610210,21.2376414,218.06,217.98,11.4685]
[1731721610211,16.6518414,218.04,217.98,11.4685]
[1731721611222,16.6518414,218.03,217.96,16.6518414]
[1731721611940,16.6518414,218.01,217.95,16.6518414]
[1731721612107,16.6518414,218.02,217.95,16.6518414]
[1731721612311,21.2385414,218.02,217.95,16.6518414]
[1731721612522,16.6518414,218.03,217.96,16.6518414]
[1731721612713,20.2389,218.04,217.98,16.6518414]
[1731721613116,15.6525,218.04,218.01,16.6518414]
[1731721613339,15.6525,218.1,218.03,16.6518414]
[1731721613512,44.96543212,218.33,218.09,16.6518414]
[1731721613513,15.6525,218.16,218.09,16.6518414]
[1731721613830,32.3043414,218.16,218.09,16.6518414]
[1731721614217,36.8882414,218.16,218.09,16.6518414]
[1731721614522,16.6518414,218.15,218.08,16.6518414]
[1731721615323,20.2364,218.16,218.02,86.6518414]
[1731721615324,36.8882414,218.16,218.09,16.6518414]
[1731721615608,15.6525,218.16,218.08,4.5853]
[1731721615807,15.6525,218.16,218.11,16.6518414]
[1731721616936,4.5829,218.2,218.13,16.6518414]
[1731721618013,21.2347414,218.2,218.13,16.6518414]
[1731721618736,31.9573414,218.21,218.13,21.2361414]
[1731721618918,15.3055,218.21,218.14,16.6518414]
[1731721619308,15.3055,218.21,218.15,16.6518414]
[1731721619638,15.3055,218.21,218.13,16.0453]
[1731721619639,15.3055,218.21,218.16,16.6518414]
[1731721619846,19.8873,218.26,218.2,16.6518414]
[1731721620626,15.3055,218.33,218.24,16.6518414]
[1731721620820,4.5804,218.32,218.26,16.6518414]
[1731721621016,15.3055,218.33,218.27,16.6518414]
[1731721621334,15.3055,218.33,218.28,16.6518414]
[1731721621830,16.6518414,218.37,218.3,16.6518414]
[1731721622034,15.3055,218.39,218.32,16.6518414]
[1731721622215,15.3055,218.39,218.33,16.6518414]
[1731721622615,15.3055,218.39,218.34,16.6518414]
[1731721622817,16.6518414,218.43,218.35,16.6518414]
[1731721623931,21.2301414,218.43,218.35,16.6518414]
[1731721624337,15.3055,218.45,218.39,16.6518414]
[1731721624516,15.3055,218.45,218.4,16.6518414]
[1731721624856,15.3055,218.45,218.35,16.0292]
[1731721624857,15.3055,218.45,218.38,16.6518414]
[1731721626039,16.6518414,218.42,218.35,11.4495]
[1731721626243,16.6518414,218.4,218.33,4.5801]
[1731721626445,16.6518414,218.4,218.33,21.2319414]
[1731721626620,16.6518414,218.42,218.34,16.6518414]
[1731721627739,16.6518414,218.42,218.35,16.6518414]
[1731721628545,16.6518414,218.4,218.33,16.6518414]
[1731721628720,16.6518414,218.38,218.3,11.452]
[1731721628924,16.6518414,218.38,218.25,70.0]
[1731721628925,16.6518414,218.31,218.25,11.4546]
[1731721631022,16.6518414,218.32,218.25,16.0365]
[1731721632130,16.6518414,218.31,218.25,16.0365]
[1731721632325,16.6518414,218.31,218.25,11.4546]
[1731721632557,16.6518414,218.3,218.25,11.4546]
[1731721632921,26.58367541,218.3,218.25,11.4546]
[1731721635532,31.16387541,218.33,218.25,38.03827541]
[1731721635730,26.58367541,218.32,218.25,38.03827541]
[1731721636129,26.58367541,218.32,218.25,11.4546]
[1731721636936,26.58367541,218.32,218.25,42.62017541]
[1731721637137,26.58367541,218.37,218.3,26.58367541]
[1731721637373,4.5791,218.38,218.31,26.58367541]
[1731721637374,31.16277541,218.38,218.31,26.58367541]
[1731721637851,26.58367541,218.37,218.3,26.58367541]
[1731721638836,26.58367541,218.37,218.3,31.16437541]
[1731721639737,4.5791,218.38,218.32,26.58367541]
[1731721640353,31.16277541,218.38,218.31,26.58367541]
[1731721640552,26.58367541,218.37,218.3,38.03577541]
[1731721640850,31.16307541,218.37,218.3,38.03577541]
[1731721645839,4.5794,218.37,218.3,42.61657541]
[1731721646040,4.5794,218.37,218.3,16.0329]
[1731721646364,4.5794,218.37,218.31,26.58367541]
[1731721648355,15.4289,218.39,218.33,26.58367541]
[1731721649051,15.4289,218.39,218.34,4.58]
[1731721649358,15.4289,218.39,218.35,26.58367541]
[1731721649542,15.4289,218.39,218.34,16.03]
[1731721649543,42.35947541,218.45,218.38,26.58367541]
[1731721649748,42.35947541,218.45,218.4,26.58367541]
[1731721649749,15.7758,218.45,218.4,26.58367541]
[1731721650137,15.7758,218.45,218.41,26.58367541]
[1731721650339,4.5772,218.48,218.43,26.58367541]
[1731721650544,4.5768,218.5,218.43,26.58367541]
[1731721651254,26.58367541,218.53,218.45,26.58367541]
[1731721651845,26.58367541,218.53,218.43,16.0233]
[1731721651846,26.58367541,218.52,218.44,26.58367541]
[1731721652057,26.58367541,218.52,218.43,16.0233]
[1731721652243,26.58367541,218.52,218.44,26.58367541]
[1731721652448,31.15987541,218.52,218.44,31.16137541]
[1731721653056,26.58367541,218.51,218.44,4.5777]
[1731721654758,16.58235054,218.51,218.44,16.58235054]
[1731721655758,16.58235054,218.5,218.43,16.58235054]
[1731721656072,16.58235054,218.5,218.39,0.09367462]
[1731721656073,16.58235054,218.46,218.39,0.34465462]
[1731721656764,16.58235054,218.46,218.4,16.0255]
[1731721659568,16.58235054,218.47,218.4,16.0255]
[1731721659969,16.58235054,218.51,218.43,16.58235054]
[1731721660154,28.352684,218.54,218.4,32.60785054]
[1731721660155,16.58235054,218.48,218.4,32.60785054]
[1731721660359,16.58235054,218.47,218.4,16.0255]
[1731721661671,16.58235054,218.41,218.36,11.4488]
[1731721662355,16.58235054,218.42,218.36,11.4488]
[1731721662554,16.58235054,218.43,218.36,11.4488]
[1731721662759,16.58235054,218.42,218.36,16.0283]
[1731721663570,16.58235054,218.41,218.36,16.0283]
[1731721663950,16.58235054,218.42,218.36,16.0283]
[1731721665352,16.58235054,218.44,218.37,16.67602516]
[1731721665553,32.13455054,218.45,218.38,16.58235054]
[1731721666172,32.13455054,218.45,218.37,16.92700516]
[1731721666370,36.71225054,218.45,218.37,16.92700516]
[1731721667451,36.71225054,218.45,218.38,16.027]
[1731721671376,32.13455054,218.45,218.38,16.027]
[1731721672982,16.58235054,218.45,218.38,16.027]
[1731721673467,4.5772,218.48,218.39,32.85953054]
[1731721673772,4.5772,218.48,218.41,16.58235054]
[1731721674366,4.5772,218.48,218.41,21.16065054]
[1731721677582,16.58235054,218.49,218.41,32.60695054]
[1731721677782,21.15915054,218.49,218.41,32.60695054]
[1731721678379,16.58235054,218.47,218.41,16.0246]
[1731721678976,16.58235054,218.47,218.41,11.4463]
[1731721679356,21.15965054,218.47,218.41,11.4463]
[1731721680283,16.58235054,218.47,218.41,11.4463]
[1731721680577,21.15895054,218.51,218.42,0.34465462]
[1731721680756,21.15895054,218.51,218.43,16.58235054]
[1731721681178,21.15895054,218.51,218.44,4.5779]
[1731721684891,21.15895054,218.51,218.44,16.0226]
[1731721687385,16.58235054,218.47,218.42,4.5781]
[1731721687768,16.58235054,218.47,218.4,16.0251]
[1731721688180,16.58235054,218.46,218.4,16.0251]
[1731721691586,21.15995054,218.46,218.4,16.0251]
[1731721691791,16.58235054,218.44,218.4,11.4466]
[1731721692789,16.58235054,218.44,218.4,16.0253]
[1731721693968,16.58235054,218.44,218.4,11.4466]
[1731721695481,16.58235054,218.45,218.4,11.4466]
[1731721695788,16.58235054,218.49,218.41,16.58235054]
[1731721695980,16.58235054,218.51,218.43,16.58235054]
[1731721697178,16.58235054,218.51,218.44,0.25098]
[1731721697470,21.15875054,218.51,218.44,0.25098]
[1731721697666,21.15805054,218.55,218.48,16.58235054]
[1731721697971,16.58235054,218.57,218.49,0.25098]
[1731721698294,16.58235054,218.58,218.51,0.34465462]
[1731721698591,16.58235054,218.57,218.49,16.58235054]
[1731721698985,16.58235054,218.55,218.48,0.25098]
[1731721699297,16.58235054,218.53,218.48,0.25098]
[1731721699471,16.58235054,218.53,218.48,4.82788]
[1731721699788,16.58235054,218.55,218.48,16.27048]
[1731721699996,16.58235054,218.57,218.5,16.58235054]
[1731721700170,16.58235054,218.55,218.48,32.85283054]
[1731721700694,16.58235054,218.55,218.48,16.27048]
[1731721700886,16.58235054,218.55,218.48,32.85283054]
[1731721701271,16.58235054,218.57,218.51,0.25098]
[1731721702094,21.15725054,218.59,218.51,0.25098]
[1731721702289,21.15725054,218.59,218.52,4.5762]
[1731721702597,16.4476,218.6,218.53,0.25098]
[1731721702598,16.58235054,218.6,218.53,0.25098]
[1731721703394,16.58235054,218.62,218.54,16.58235054]
[1731721703571,16.58235054,218.62,218.55,0.25098]
[1731721703778,16.58235054,218.64,218.57,0.25098]
[1731721704493,16.58235054,218.64,218.58,4.5749]
[1731721705595,16.58235054,218.64,218.57,0.25098]
[1731721705786,16.58235054,218.62,218.57,0.25098]
[1731721706688,21.15655054,218.62,218.56,11.4382]
[1731721709102,16.58235054,218.6,218.52,16.58235054]
[1731721709302,16.58235054,218.6,218.53,0.25098]
[1731721709999,16.58235054,218.6,218.54,4.5758]
[1731721712492,21.15695054,218.6,218.53,21.40933054]
[1731721712894,16.58235054,218.58,218.52,4.82708]
[1731721714197,16.58235054,218.58,218.52,16.26768]
[1731721714403,27.8813,218.66,218.53,16.58235054]
[1731721714404,21.15675054,218.61,218.53,16.58235054]
[1731721715382,21.15675054,218.61,218.55,4.5756]
[1731721716711,16.58235054,218.64,218.57,16.58235054]
[1731721716886,10.60047731,218.64,218.57,10.60047731]
[1731721717405,10.60047731,218.64,218.58,0.25098]
[1731721718296,15.17427731,218.64,218.58,4.82588]
[1731721719085,15.17427731,218.64,218.58,0.25098]
[1731721721089,15.17427731,218.64,218.58,4.82588]
[1731721721797,15.17427731,218.64,218.57,0.25098]
[1731721721986,10.60047731,218.6,218.52,0.12549]
[1731721722186,10.60047731,218.6,218.52,4.576]
[1731721722495,10.60047731,218.58,218.51,22.04107731]
[1731721722694,10.60047731,218.58,218.51,26.61747731]
[1731721722890,10.60047731,218.6,218.53,10.60047731]
[1731721723091,15.17507731,218.6,218.53,15.17637731]
[1731721723887,15.17507731,218.6,218.53,4.5759]
[1731721724299,15.17507731,218.6,218.52,4.66987462]
[1731721724707,15.17507731,218.6,218.53,10.60047731]
[1731721726294,15.17507731,218.6,218.53,15.17647731]
[1731721726707,0.12549,218.66,218.55,10.60047731]
[1731721726892,10.60047731,218.6,218.53,11.44]
[1731721727208,10.60047731,218.6,218.53,16.016]
[1731721727399,10.60047731,218.58,218.51,15.17667731]
[1731721728117,15.17547731,218.58,218.51,15.17667731]
[1731721729204,10.60047731,218.56,218.5,27.3784]
[1731721729799,10.60047731,218.54,218.49,11.442]
[1731721730199,10.60047731,218.53,218.49,11.442]
[1731721730917,10.60047731,218.54,218.49,11.442]
[1731721731614,10.60047731,218.57,218.49,22.04247731]
[1731721731797,10.60047731,218.56,218.49,11.442]
[1731721732308,15.17597731,218.56,218.49,16.0188]
[1731721732497,10.60047731,218.55,218.49,16.0188]
[1731721732816,10.60047731,218.56,218.49,16.0188]
[1731721734315,10.60047731,218.55,218.49,16.0188]
[1731721735011,10.60047731,218.55,218.48,0.09367462]
[1731721735318,10.60047731,218.55,218.48,0.21916462]
[1731721736419,10.60047731,218.55,218.49,4.5768]
[1731721737905,10.60047731,218.55,218.49,16.0189]
[1731721738302,10.60047731,218.56,218.49,16.0189]
[1731721739219,10.60047731,218.6,218.53,0.12549]
[1731721739408,10.60047731,218.6,218.54,10.60047731]
[1731721739608,10.60047731,218.6,218.55,4.5756]
[1731721739815,10.60047731,218.61,218.55,4.5756]
[1731721740904,10.60047731,218.61,218.55,16.0146]
[1731721741102,15.17447731,218.63,218.56,10.60047731]
[1731721741625,4.5731,218.67,218.59,0.21916462]
[1731721741799,10.60047731,218.66,218.59,0.21916462]
[1731721742820,0.4351921,218.68,218.61,0.21916462]
[1731721743034,0.4351921,218.68,218.6,16.0109]
[1731721743035,0.4351921,218.68,218.64,10.60047731]
[1731721744305,0.4351921,218.68,218.65,0.12549]
[1731721744921,0.4351921,218.68,218.66,4.66697462]
[1731721746198,0.4351921,218.68,218.65,11.4333]
[1731721748823,11.03566941,218.68,218.61,22.5833]
[1731721749011,10.60047731,218.67,218.62,0.12549]
[1731721749956,10.60047731,218.67,218.61,11.4357]
[1731721750125,10.60047731,218.64,218.57,46.61347731]
[1731721750623,10.60047731,218.64,218.58,0.09367462]
[1731721751005,10.60047731,218.64,218.58,4.66847462]
[1731721751528,10.60047731,218.64,218.59,0.12549]
[1731721751716,10.60047731,218.65,218.59,0.12549]
[1731721751904,0.4351921,218.68,218.62,0.09367462]
[1731721752228,0.4351921,218.68,218.67,10.69415193]
[1731721752407,0.4351921,218.68,218.67,10.81964193]
[1731721753416,0.4351921,218.68,218.67,15.39274193]
[1731721754834,0.4351921,218.68,218.67,21.33696852]
[1731721755349,0.4351921,218.68,218.67,21.46245852]
[1731721755509,0.4351921,218.68,218.67,41.46245852]
[1731721759432,0.4351921,218.68,218.67,21.46245852]
[1731721768134,0.4351921,218.68,218.67,16.5447039]
[1731721768341,0.4351921,218.68,218.63,11.4348]
[1731721768522,0.4351921,218.68,218.63,27.9795039]
[1731721768731,0.4351921,218.68,218.64,0.09367462]
[1731721769240,0.4351921,218.68,218.64,16.63837852]
[1731721769413,0.4351921,218.68,218.67,40.66624252]
[1731721770219,0.4351921,218.68,218.67,45.23934252]
[1731721770742,0.4351921,218.68,218.67,65.23934252]
[1731721772613,0.4351921,218.68,218.67,24.91775462]
[1731721772833,0.4351921,218.68,218.67,21.33696852]
[1731721773113,0.4351921,218.68,218.66,16.5447039]
[1731721773535,0.4351921,218.68,218.65,32.5517039]
[1731721773737,0.4351921,218.68,218.66,0.09367462]
[1731721773939,0.4351921,218.68,218.65,16.007]
[1731721775021,0.4351921,218.68,218.66,4.79236462]
[1731721778929,0.4351921,218.68,218.65,11.4337]
[1731721780239,0.4351921,218.68,218.65,16.0072]
[1731721781039,0.4351921,218.68,218.65,11.4337]
[1731721782440,0.4351921,218.68,218.66,8.92296285]
[1731721782622,0.4351921,218.68,218.67,9.17394285]
[1731721783051,0.4351921,218.68,218.66,0.12549]
[1731721783938,0.4351921,218.68,218.66,0.21916462]
[1731721784350,0.4351921,218.68,218.66,4.79236462]
[1731721784726,0.4351921,218.68,218.66,13.62165285]
[1731721786540,0.4351921,218.68,218.67,0.34465462]
[1731721787837,0.4351921,218.68,218.67,4.91775462]
[1731721788552,0.4351921,218.68,218.67,4.69859]
[1731721791936,0.4351921,218.68,218.63,20.25098]
[1731721792136,0.4351921,218.68,218.65,9.04845285]
[1731721792644,0.4351921,218.68,218.65,8.92296285]
[1731721793058,0.4351921,218.68,218.66,0.12549]
[1731721793939,0.4351921,218.68,218.64,4.69899]
[1731721794835,0.4351921,218.68,218.62,11.4353]
[1731721795157,8.82928823,218.66,218.58,20.26648823]
[1731721795335,8.82928823,218.66,218.58,8.82928823]
[1731721795531,8.82928823,218.66,218.59,16.10527462]
[1731721795861,8.82928823,218.66,218.59,16.0116]
[1731721796233,8.82928823,218.66,218.6,0.12549]
[1731721796845,8.82928823,218.65,218.59,16.0116]
[1731721797455,8.82928823,218.64,218.53,22.8791]
[1731721797752,8.82928823,218.63,218.55,20.26808823]
[1731721797946,8.82928823,218.62,218.55,20.26808823]
[1731721798147,8.82928823,218.62,218.55,11.4388]
[1731721798349,8.82928823,218.61,218.55,11.4388]
[1731721798955,4.5743,218.62,218.55,11.4388]
[1731721798956,24.81318823,218.6,218.55,11.4388]
[1731721799151,24.81318823,218.6,218.51,20.27028823]
[1731721799152,8.82928823,218.59,218.51,20.27028823]
[1731721799356,8.82928823,218.59,218.52,8.82928823]
[1731721799744,24.81318823,218.6,218.52,8.82928823]
[1731721800159,24.81318823,218.6,218.53,4.576]
[1731721800332,15.9839,218.6,218.54,8.95477823]
[1731721800533,15.9839,218.6,218.59,8.82928823]
[1731721800837,6.5825,218.63,218.57,0.09367462]
[1731721801038,6.5825,218.63,218.58,0.12549]
[1731721802256,6.5825,218.63,218.56,9.04845285]
[1731721802540,6.5825,218.63,218.58,4.5749]
[1731721804742,6.5825,218.63,218.58,0.12549]
[1731721806239,15.41178823,218.63,218.58,0.12549]
[1731721806747,8.82928823,218.62,218.57,11.4379]
[1731721807063,8.82928823,218.6,218.55,0.12549]
[1731721807564,11.1564,218.63,218.53,20.26928823]
[1731721807565,8.82928823,218.59,218.53,11.44]
[1731721807866,8.82928823,218.55,218.48,24.84848823]
[1731721808073,8.82928823,218.53,218.48,11.4422]
[1731721808245,8.82928823,218.52,218.48,11.4422]
[1731721811262,8.82928823,218.52,218.46,0.12549]
[1731721811562,16.3515,218.52,218.46,8.82928823]
[1731721812563,16.3515,218.52,218.47,8.82928823]
[1731721812761,16.3515,218.57,218.49,8.82928823]
[1731721812945,16.3515,218.57,218.5,8.82928823]
[1731721813139,161.7,218.62,218.48,16.23876462]
[1731721813140,25.18078823,218.62,218.55,8.82928823]
[1731721813336,16.3515,218.62,218.56,8.82928823]
[1731721814662,16.3515,218.62,218.57,8.82928823]
[1731721814969,16.3515,218.62,218.57,13.80266152]
[1731721815161,16.3515,218.62,218.55,13.92815152]
[1731721815349,34.72836152,218.62,218.55,0.12549]
[1731721816258,13.80266152,218.59,218.52,13.80266152]
[1731721816462,34.72836152,218.62,218.54,29.81796152]
[1731721817865,16.3515,218.62,218.56,13.80266152]
[1731721818243,13.80266152,218.65,218.58,13.80266152]
[1731721818565,18.37606152,218.66,218.58,13.80266152]
[1731721818944,30.15416152,218.67,218.59,13.80266152]
[1731721819765,30.15416152,218.67,218.6,4.5745]
[1731721819766,34.72726152,218.67,218.6,4.5745]
[1731721821945,13.80266152,218.66,218.6,4.5745]
[1731721822966,13.80266152,218.65,218.58,11.437]
[1731721823152,13.80266152,218.65,218.59,0.12549]
[1731721823358,13.80266152,218.64,218.59,0.12549]
[1731721823861,13.80266152,218.66,218.59,0.12549]
[1731721824169,13.80266152,218.66,218.59,13.92815152]
[1731721824846,16.3515,218.67,218.61,13.80266152]
[1731721825054,14.23785362,218.68,218.62,16.0094]
[1731721826748,0.4351921,218.68,218.62,16.0094]
[1731721827361,0.4351921,218.68,218.62,29.80517956]
[1731721827755,0.4351921,218.68,218.63,0.34465462]
[1731721827958,0.4351921,218.68,218.64,13.79577956]
[1731721829058,0.4351921,218.68,218.65,4.5735]
[1731721830770,0.4351921,218.68,218.66,13.92126956]
[1731721831076,0.4351921,218.68,218.67,14.14043418]
[1731721832175,0.4351921,218.68,218.67,132.49041818]
[1731721833061,13.79577956,218.79,218.68,44.12153862]
[1731721833268,18.36597956,218.81,218.73,13.79577956]
[1731721833474,18.36597956,218.81,218.75,14.04675956]
[1731721833475,13.79577956,218.81,218.75,14.04675956]
[1731721833769,13.79577956,218.81,218.76,0.09367462]
[1731721833953,16.193,218.83,218.77,0.25098]
[1731721834153,16.193,218.83,218.78,4.5708]
[1731721834779,13.79577956,218.82,218.78,4.5708]
[1731721834962,13.79577956,218.8,218.77,11.4273]
[1731721836059,13.78218448,218.79,218.71,20.0]
[1731721836371,13.78218448,218.8,218.71,0.09367462]
[1731721836554,20.7628,218.83,218.71,0.09367462]
[1731721836555,13.78218448,218.82,218.74,13.78218448]
[1731721836882,13.78218448,218.82,218.75,13.8758591]
[1731721837179,13.78218448,218.84,218.77,13.8758591]
[1731721837659,13.78218448,218.84,218.78,0.12549]
[1731721838680,13.78218448,218.84,218.78,4.69609]
[1731721838972,13.78218448,218.83,218.78,4.69609]
[1731721839351,13.78218448,218.82,218.78,4.5706]
[1731721839556,13.78218448,218.81,218.77,15.9984]
[1731721840005,13.78218448,218.8,218.77,11.4274]
[1731721840869,13.78218448,218.8,218.73,13.78218448]
[1731721840870,8.82024663,218.8,218.74,20.34465462]
[1731721841373,8.82024663,218.8,218.74,0.34465462]
[1731721841979,8.82024663,218.8,218.74,4.91605462]
[1731721842387,8.82024663,218.8,218.74,4.69689]
[1731721842877,13.78255053,218.8,218.74,4.69689]
[1731721843055,13.78255053,218.79,218.74,4.69689]
[1731721843772,13.78255053,218.8,218.74,4.69689]
[1731721846977,13.78255053,218.79,218.74,4.69689]
[1731721847996,13.78255053,218.77,218.7,0.25098]
[1731721848168,13.78255053,218.77,218.71,0.09367462]
[1731721849388,13.78255053,218.76,218.71,4.66567462]
[1731721849780,13.78255053,218.76,218.68,25.21425053]
[1731721849997,13.78255053,218.73,218.69,4.5725]
[1731721850174,13.78255053,218.74,218.69,4.5725]
[1731721851394,13.78255053,218.74,218.68,11.4317]
[1731721852795,13.78255053,218.75,218.68,11.4317]
[1731721852998,13.78255053,218.75,218.68,16.0045]
[1731721854182,13.78255053,218.78,218.71,14.00171515]
[1731721854384,13.78255053,218.79,218.71,14.00171515]
[1731721856981,13.78255053,218.78,218.72,4.572]
[1731721857787,13.78255053,218.79,218.72,29.78465053]
[1731721858491,29.89235053,218.8,218.72,29.78465053]
[1731721859687,13.78255053,218.8,218.72,29.78465053]
[1731721859889,13.78255053,218.8,218.73,14.00171515]
[1731721860088,15.8301,218.85,218.75,13.87622515]
[1731721860089,13.78255053,218.82,218.75,13.87622515]
[1731721860282,13.78255053,218.83,218.76,13.78255053]
[1731721860976,13.78255053,218.84,218.78,0.12549]
[1731721861181,13.78255053,218.84,218.79,4.5705]
[1731721861573,13.78255053,218.83,218.79,4.5705]
[1731721861895,13.78255053,218.84,218.79,4.5705]
[1731721862596,13.78255053,218.84,218.79,15.9969]
[1731721862792,13.78255053,218.85,218.79,15.9969]
[1731721864894,8.81688546,218.84,218.79,15.9969]
[1731721865775,20.8335921,218.9,218.81,0.09367462]
[1731721865974,8.81688546,218.87,218.81,0.09367462]
[1731721866397,8.81688546,218.88,218.82,0.12549]
[1731721867284,8.81688546,218.88,218.83,0.09367462]
[1731721867581,0.4351921,218.9,218.85,0.09367462]
[1731721867793,9.25207756,218.9,218.86,4.5691]
[1731721868095,8.81688546,218.89,218.86,4.5691]
[1731721868789,0.4351921,218.9,218.85,11.4229]
[1731721868790,8.81688546,218.88,218.85,11.4229]
[1731721868988,8.81688546,218.87,218.85,11.4229]
[1731721869578,8.81688546,218.88,218.82,22.0287]
[1731721869788,8.81688546,218.87,218.82,26.5984]
[1731721870297,8.81688546,218.86,218.82,4.5697]